bitfinex/quotes_BTCUSD_20250610
["timestamp","ask_amount","ask_price","bid_price","bid_amount"]
[1749577683121,1.35352637,108740.0,108730.0,0.51844199]
[1749577683325,1.35352637,108740.0,108730.0,0.50124584]
[1749577683539,1.35352637,108740.0,108730.0,0.51844192]
[1749577683739,1.35352637,108740.0,108730.0,0.57339561]
[1749577683945,1.35352637,108740.0,108730.0,0.17339487]
[1749577684146,1.35352637,108740.0,108730.0,0.173393]
[1749577684351,1.35352637,108740.0,108730.0,0.57339322]
[1749577684627,1.35352637,108740.0,108730.0,0.55620291]
[1749577684745,1.35352637,108740.0,108730.0,0.57339279]
[1749577685731,1.35352637,108740.0,108730.0,0.57339329]
[1749577686084,1.35352637,108740.0,108730.0,0.56738935]
[1749577686295,1.35352637,108740.0,108730.0,0.5733934]
[1749577686498,1.35352637,108740.0,108730.0,0.57339335]
[1749577686669,1.35352637,108740.0,108730.0,0.57339368]
[1749577687588,1.35352637,108740.0,108730.0,0.57339363]
[1749577687784,1.35352637,108740.0,108730.0,0.56739201]
[1749577687935,1.35352637,108740.0,108730.0,0.47215205]
[1749577688135,1.35352637,108740.0,108730.0,0.42319799]
[1749577688334,1.44876637,108740.0,108730.0,0.02319799]
[1749577688550,1.44876637,108740.0,108730.0,0.02319827]
[1749577688922,2.23767172,108740.0,108730.0,0.02319548]
[1749577689130,1.54011977,108740.0,108730.0,0.02319548]
[1749577689341,0.19313879,108730.0,108720.0,0.45495893]
[1749577689547,1.10828414,108730.0,108720.0,0.45495893]
[1749577689758,1.10828414,108730.0,108720.0,0.47815372]
[1749577689967,1.10828414,108730.0,108720.0,0.45495893]
[1749577690178,1.10828414,108730.0,108720.0,0.41719499]
[1749577690384,1.10828414,108730.0,108720.0,0.42620054]
[1749577691002,1.10828414,108730.0,108720.0,0.40900555]
[1749577691430,1.10828414,108730.0,108720.0,0.403]
[1749577691629,1.10828414,108730.0,108720.0,0.42019499]
[1749577691907,1.44828414,108730.0,108720.0,0.00900555]
[1749577692111,1.44828414,108730.0,108720.0,0.02620054]
[1749577692360,1.44828414,108730.0,108720.0,0.42620054]
[1749577692549,1.44828414,108730.0,108720.0,0.42620299]
[1749577692758,1.44828414,108730.0,108720.0,0.42621002]
[1749577692955,1.44828414,108730.0,108720.0,0.42020202]
[1749577693133,1.44828414,108730.0,108720.0,0.42621002]
[1749577693357,1.44828414,108730.0,108720.0,0.42020202]
[1749577693532,1.44828414,108730.0,108720.0,0.42621002]
[1749577693796,1.44828414,108730.0,108720.0,0.42620494]
[1749577693924,1.44828414,108730.0,108720.0,0.42019694]
[1749577694357,1.44828414,108730.0,108720.0,0.42620319]
[1749577694559,1.44828414,108730.0,108720.0,0.40900625]
[1749577694828,1.44828414,108730.0,108720.0,0.42019714]
[1749577695157,1.44828414,108730.0,108720.0,0.42620339]
[1749577695357,1.44828414,108730.0,108720.0,0.403]
[1749577695550,1.44828414,108730.0,108720.0,0.02622079]
[1749577695880,1.44828414,108730.0,108720.0,0.02621621]
[1749577696119,1.44828414,108730.0,108720.0,0.42621459]
[1749577696333,1.44828414,108730.0,108720.0,0.40900914]
[1749577696492,1.44828414,108730.0,108720.0,0.42020543]
[1749577696706,1.44828414,108730.0,108720.0,0.40900913]
[1749577696903,1.44828414,108730.0,108720.0,0.42621452]
[1749577697256,1.44828414,108730.0,108720.0,0.42621453]
[1749577697919,1.44828414,108730.0,108720.0,0.42621187]
[1749577698187,1.44828414,108730.0,108720.0,0.42020281]
[1749577698431,1.44828414,108730.0,108720.0,0.40900821]
[1749577698654,1.44828414,108730.0,108720.0,0.42621092]
[1749577698904,1.44828414,108730.0,108720.0,0.42621099]
[1749577699128,1.44828414,108730.0,108720.0,0.02621099]
[1749577699562,1.44828414,108730.0,108720.0,0.42620975]
[1749577699764,1.44828414,108730.0,108720.0,0.403]
[1749577700469,1.44828414,108730.0,108720.0,0.42020161]
[1749577700671,1.44828414,108730.0,108720.0,0.42020151]
[1749577700896,1.44828414,108730.0,108720.0,0.42620928]
[1749577701152,1.44828414,108730.0,108720.0,0.42620948]
[1749577701280,0.65549219,108730.0,108720.0,0.42621059]
[1749577701487,1.35304414,108730.0,108720.0,0.42621059]
[1749577701689,0.65549219,108730.0,108720.0,0.403]
[1749577701889,0.01839375,108730.0,108720.0,0.59170916]
[1749577702097,0.00919582,108740.0,108720.0,1.55266353]
[1749577702322,0.03678345,108740.0,108730.0,0.89386803]
[1749577702518,0.20231735,108740.0,108730.0,0.21352549]
[1749577702921,0.20231735,108740.0,108730.0,0.19632642]
[1749577703170,1.32187047,108740.0,108730.0,0.61351629]
[1749577703324,0.98187047,108740.0,108730.0,0.61351577]
[1749577703523,0.28331852,108740.0,108730.0,0.61351577]
[1749577703887,0.62331852,108740.0,108730.0,0.61551577]
[1749577704090,0.54331735,108740.0,108730.0,0.6135157]
[1749577704696,0.54231735,108740.0,108730.0,0.6135157]
[1749577704921,0.54231735,108740.0,108730.0,0.54013831]
[1749577705120,0.54231735,108740.0,108730.0,1.22050535]
[1749577705306,0.54231735,108740.0,108730.0,1.23768956]
[1749577705509,0.54231735,108740.0,108730.0,1.22050535]
[1749577705855,0.54231735,108740.0,108730.0,1.22250535]
[1749577706061,0.54231735,108740.0,108730.0,1.24068956]
[1749577706666,0.54231735,108740.0,108730.0,1.22350535]
[1749577706867,0.54231735,108740.0,108730.0,1.24068174]
[1749577707071,0.54231735,108740.0,108730.0,1.2406816]
[1749577707269,0.54231735,108740.0,108730.0,1.3153833]
[1749577707478,0.54231735,108740.0,108730.0,1.22350535]
[1749577707684,0.54231735,108740.0,108730.0,1.24068169]
[1749577708307,0.54231735,108740.0,108730.0,1.22350535]
[1749577708581,0.54231735,108740.0,108730.0,1.24067944]
[1749577709020,0.54231735,108740.0,108730.0,1.22350535]
[1749577709421,0.54231735,108740.0,108730.0,1.31394753]
[1749577710437,0.54231735,108740.0,108730.0,1.31394251]
[1749577711699,0.54231735,108740.0,108730.0,0.61639056]
[1749577711981,0.54231735,108740.0,108730.0,0.71158777]
[1749577712390,0.54231735,108740.0,108730.0,0.71158852]
[1749577712593,0.54231735,108740.0,108730.0,0.71158853]
[1749577712813,0.54231735,108740.0,108730.0,0.71158851]
[1749577713128,0.54231735,108740.0,108730.0,0.71158846]
[1749577714270,0.54231735,108740.0,108730.0,0.69442149]
[1749577714476,0.54231735,108740.0,108730.0,0.71158643]
[1749577714695,0.54231735,108740.0,108730.0,0.69442149]
[1749577714915,0.54231735,108740.0,108730.0,0.71158643]
[1749577715528,1.3312227,108740.0,108730.0,0.58478643]
[1749577715930,1.3312227,108740.0,108730.0,0.67998643]
[1749577716067,1.3312227,108740.0,108730.0,0.67998472]
[1749577716324,1.3312227,108740.0,108730.0,0.5895534]
[1749577716530,1.3312227,108740.0,108730.0,0.58378489]
[1749577716892,1.3312227,108740.0,108730.0,0.67698502]
[1749577717469,1.2398693,108740.0,108730.0,0.67698202]
[1749577717696,1.2398693,108740.0,108730.0,0.69328202]
[1749577717925,1.2398693,108740.0,108730.0,0.70928202]
[1749577718104,1.2398693,108740.0,108730.0,0.69212149]
[1749577718296,1.2398693,108740.0,108730.0,0.70928202]
[1749577718508,1.3312227,108740.0,108730.0,0.59808202]
[1749577718709,1.3312227,108740.0,108730.0,0.60371393]
[1749577719452,1.3312227,108740.0,108730.0,0.60371653]
[1749577719684,1.3312227,108740.0,108730.0,0.5865534]
[1749577719961,1.3312227,108740.0,108730.0,0.60371653]
[1749577720890,1.2398693,108740.0,108730.0,0.51236598]
[1749577721358,1.2398693,108740.0,108730.0,0.56846809]
[1749577721840,1.2398693,108740.0,108730.0,0.58563371]
[1749577722503,1.2398693,108740.0,108730.0,0.56846809]
[1749577722734,1.2398693,108740.0,108730.0,0.49043379]
[1749577722955,1.3622227,108740.0,108730.0,0.5123657]
[1749577723146,1.3622227,108740.0,108730.0,0.56730414]
[1749577723349,1.3622227,108740.0,108730.0,0.55013836]
[1749577723615,1.3467227,108740.0,108730.0,0.55013836]
[1749577723823,1.2398693,108740.0,108730.0,0.55013836]
[1749577724438,1.2398693,108740.0,108730.0,0.51236948]
[1749577724638,1.2398693,108740.0,108730.0,0.4952]
[1749577725103,1.2398693,108740.0,108730.0,0.51236947]
[1749577725555,0.54231735,108740.0,108730.0,0.54284732]
[1749577725763,0.53312119,108740.0,108730.0,0.70869728]
[1749577725970,0.01839173,108740.0,108730.0,0.70869712]
[1749577726174,0.22070857,108740.0,108730.0,0.23542855]
[1749577726416,0.20231701,108740.0,108730.0,0.23542855]
[1749577726626,0.20231701,108740.0,108730.0,0.72730542]
[1749577726848,0.20231701,108740.0,108730.0,0.71013135]
[1749577727247,0.20231701,108740.0,108730.0,0.72730541]
[1749577727569,0.20231701,108740.0,108730.0,0.71313135]
[1749577728209,0.20231701,108740.0,108730.0,0.73031839]
[1749577728411,0.20231701,108740.0,108730.0,0.63844088]
[1749577728692,0.20231701,108740.0,108730.0,0.6212534]
[1749577728923,0.20231701,108740.0,108730.0,0.7303207]
[1749577729127,0.20231701,108740.0,108730.0,0.63844275]
[1749577729591,0.89986896,108740.0,108730.0,0.71313135]
[1749577729808,0.89986896,108740.0,108730.0,0.63847621]
[1749577729996,0.89986896,108740.0,108730.0,0.6212534]
[1749577730259,0.89986896,108740.0,108730.0,0.6384764]
[1749577730447,0.89986896,108740.0,108730.0,0.73035433]
[1749577730658,0.20231701,108740.0,108730.0,0.73035433]
[1749577731060,0.89986896,108740.0,108730.0,0.73035433]
[1749577731266,0.89986896,108740.0,108730.0,0.73035434]
[1749577731875,0.89986896,108740.0,108730.0,0.73035433]
[1749577732077,0.89986896,108740.0,108730.0,0.73035447]
[1749577733105,0.89986896,108740.0,108730.0,0.71313135]
[1749577733316,0.89986896,108740.0,108730.0,0.7303542]
[1749577734063,0.20231701,108740.0,108730.0,0.73035421]
[1749577734468,0.20231701,108740.0,108730.0,0.61975421]
[1749577734692,0.20231701,108740.0,108730.0,0.60345421]
[1749577734693,0.89986896,108740.0,108730.0,0.60345421]
[1749577734893,0.91576896,108740.0,108730.0,0.69865421]
[1749577735073,0.91576896,108740.0,108730.0,0.58623135]
[1749577735293,1.36222236,108740.0,108730.0,0.6067773]
[1749577735501,1.34712236,108740.0,108730.0,0.68024988]
[1749577735705,1.34712236,108740.0,108730.0,0.68024983]
[1749577735907,1.34712236,108740.0,108730.0,0.66302498]
[1749577736111,1.34712236,108740.0,108730.0,0.68024961]
[1749577736282,1.34712236,108740.0,108730.0,0.66302498]
[1749577736492,1.34712236,108740.0,108730.0,0.68024966]
[1749577736875,1.36312236,108740.0,108730.0,0.68024679]
[1749577737093,1.36312236,108740.0,108730.0,0.6802468]
[1749577737480,1.36312236,108740.0,108730.0,0.66302498]
[1749577737724,1.36312236,108740.0,108730.0,0.68024692]
[1749577738459,1.36312236,108740.0,108730.0,0.58889352]
[1749577738615,1.36312236,108740.0,108730.0,0.57167158]
[1749577739469,1.36312236,108740.0,108730.0,0.58889402]
[1749577740473,1.36312236,108740.0,108730.0,0.57167158]
[1749577740694,1.36312236,108740.0,108730.0,0.58888833]
[1749577742267,1.36312236,108740.0,108730.0,0.18888833]
[1749577742486,1.36312236,108740.0,108730.0,0.17167158]
[1749577742707,1.36312236,108740.0,108730.0,0.57167158]
[1749577742916,1.36312236,108740.0,108730.0,0.58888676]
[1749577743123,1.36312236,108740.0,108730.0,0.57167158]
[1749577743329,1.36312236,108740.0,108730.0,0.58888676]
[1749577743911,1.36312236,108740.0,108730.0,0.58888577]
[1749577744362,1.36312236,108740.0,108730.0,0.57167158]
[1749577744588,1.36312236,108740.0,108730.0,0.47647158]
[1749577744789,1.36312236,108740.0,108730.0,0.55328251]
[1749577744989,1.36312236,108740.0,108730.0,0.5704977]
[1749577745343,1.36312236,108740.0,108730.0,0.4752977]
[1749577745553,1.36312236,108740.0,108730.0,0.47529794]
[1749577745756,1.36312236,108740.0,108730.0,0.47528861]
[1749577746167,1.36312236,108740.0,108730.0,0.45808251]
[1749577746364,1.36312236,108740.0,108730.0,0.42020661]
[1749577746732,1.36312236,108740.0,108730.0,0.403]
[1749577746941,0.66557041,108740.0,108730.0,0.42020681]
[1749577747148,1.36312236,108740.0,108730.0,0.42020681]
[1749577747484,1.36312236,108740.0,108730.0,0.02020665]
[1749577747687,1.36312236,108740.0,108730.0,0.02020647]
[1749577748185,1.36312236,108740.0,108730.0,0.42020642]
[1749577748376,1.36312236,108740.0,108730.0,0.403]
[1749577748377,1.45832236,108740.0,108730.0,0.403]
[1749577748577,1.45832236,108740.0,108730.0,0.42020685]
[1749577748772,1.45832236,108740.0,108730.0,0.42020462]
[1749577749172,1.54967576,108740.0,108730.0,0.02020462]
[1749577749377,1.54967576,108740.0,108730.0,0.02019443]
[1749577749579,1.54967576,108740.0,108730.0,0.003]
[1749577749787,1.54967576,108740.0,108730.0,0.01919448]
[1749577749960,0.22543879,108730.0,108720.0,0.45508251]
[1749577750162,0.31679219,108730.0,108720.0,0.47227715]
[1749577750338,1.10954414,108730.0,108720.0,0.47828181]
[1749577751181,1.10954414,108730.0,108720.0,0.47827964]
[1749577751394,1.10954414,108730.0,108720.0,0.42318837]
[1749577751609,1.10954414,108730.0,108720.0,0.40600251]
[1749577751850,1.44954414,108730.0,108720.0,0.40600249]
[1749577752054,1.44954414,108730.0,108720.0,0.42318835]
[1749577752666,1.44954414,108730.0,108720.0,0.42318741]
[1749577752667,1.45054414,108730.0,108720.0,0.42318741]
[1749577753111,1.45154414,108730.0,108720.0,0.42318754]
[1749577753310,1.35634414,108730.0,108720.0,0.41718586]
[1749577753529,1.35634414,108730.0,108710.0,0.05508251]
[1749577753530,0.19315656,108720.0,108710.0,0.15028251]
[1749577753716,0.28450996,108720.0,108710.0,0.17346731]
[1749577753948,1.32206191,108720.0,108710.0,0.47826758]
[1749577754171,1.32206191,108720.0,108710.0,0.57346758]
[1749577754884,1.32206191,108720.0,108710.0,0.5674647]
[1749577755101,1.32206191,108720.0,108710.0,0.4782663]
[1749577755317,1.32206191,108720.0,108710.0,0.55028251]
[1749577755534,1.32206191,108720.0,108710.0,0.57346634]
[1749577756679,0.64040996,108720.0,108710.0,0.55028251]
[1749577756914,1.33796191,108720.0,108710.0,0.57346604]
[1749577757144,1.33796191,108720.0,108710.0,0.57346605]
[1749577757410,1.32206191,108720.0,108710.0,0.55628411]
[1749577757663,1.32206191,108720.0,108710.0,0.57346604]
[1749577757894,0.62450996,108720.0,108710.0,0.55028251]
[1749577758146,0.53315656,108720.0,108710.0,0.57346603]
[1749577758363,1.23070851,108720.0,108710.0,0.60536603]
[1749577758610,1.23070851,108720.0,108710.0,0.58818445]
[1749577758829,1.23070851,108720.0,108710.0,0.59937167]
[1749577759086,1.23070851,108720.0,108710.0,0.60537588]
[1749577759339,1.32206191,108720.0,108710.0,0.60537588]
[1749577760314,1.32206191,108720.0,108710.0,0.6053758]
[1749577760568,1.32206191,108720.0,108710.0,0.60537579]
[1749577761384,1.32206191,108720.0,108710.0,0.55029328]
[1749577761597,0.34,108720.0,108710.0,0.71511863]
[1749577761796,0.3675922,108720.0,108710.0,1.42120693]
[1749577761940,0.551552,108720.0,108710.0,1.42120693]
[1749577762142,0.5423544,108720.0,108710.0,0.65018225]
[1749577762341,0.5423544,108720.0,108710.0,0.65018228]
[1749577762758,0.5423544,108720.0,108710.0,0.72352632]
[1749577762962,0.5423544,108720.0,108710.0,0.72352627]
[1749577763186,0.5423544,108720.0,108710.0,0.65218228]
[1749577763552,0.5423544,108720.0,108710.0,0.63499425]
[1749577763966,0.5423544,108720.0,108710.0,0.65219437]
[1749577764176,0.5423544,108720.0,108710.0,0.65219438]
[1749577764398,0.5423544,108720.0,108710.0,0.63599425]
[1749577764600,0.5423544,108720.0,108710.0,0.65319437]
[1749577765236,0.5423544,108720.0,108710.0,0.7278722]
[1749577765439,0.5423544,108720.0,108710.0,0.74507229]
[1749577765885,0.5423544,108720.0,108710.0,0.65319439]
[1749577766315,0.5423544,108720.0,108710.0,0.65319455]
[1749577766522,1.23990635,108720.0,108710.0,0.63865373]
[1749577767189,0.5423544,108720.0,108710.0,0.63865373]
[1749577767629,0.5423544,108720.0,108710.0,0.6214534]
[1749577767836,0.5423544,108720.0,108710.0,0.63866091]
[1749577768051,0.5423544,108720.0,108710.0,0.63866089]
[1749577768398,0.5423544,108720.0,108710.0,0.73053884]
[1749577768600,0.5423544,108720.0,108710.0,0.63866089]
[1749577769070,0.5423544,108720.0,108710.0,0.6214534]
[1749577769771,0.5423544,108720.0,108710.0,0.63866214]
[1749577770674,1.33125975,108720.0,108710.0,0.73054334]
[1749577770973,2.0616117,108720.0,108710.0,0.420212]
[1749577771204,2.0616117,108720.0,108710.0,0.5888506]
[1749577771431,1.36405975,108720.0,108710.0,0.49966335]
[1749577771649,1.36405975,108720.0,108710.0,0.59486335]
[1749577772103,1.36405975,108720.0,108710.0,0.49666335]
[1749577772348,1.36405975,108720.0,108710.0,0.58585605]
[1749577772573,1.36405975,108720.0,108710.0,0.56863698]
[1749577772800,1.36405975,108720.0,108710.0,0.59187014]
[1749577773045,0.6665078,108720.0,108710.0,0.58585573]
[1749577773276,1.25640635,108720.0,108710.0,0.59187014]
[1749577773498,1.25640635,108720.0,108710.0,0.57465139]
[1749577773722,1.25640635,108720.0,108710.0,0.59186996]
[1749577773948,1.25640635,108720.0,108710.0,0.59186983]
[1749577774175,1.25640635,108720.0,108710.0,0.17465126]
[1749577774626,1.25640635,108720.0,108710.0,0.58585531]
[1749577774854,1.25640635,108720.0,108710.0,0.57465126]
[1749577775080,1.25640635,108720.0,108710.0,0.59186959]
[1749577775547,1.34675975,108720.0,108710.0,0.59186959]
[1749577775995,1.34675975,108720.0,108710.0,0.57465157]
[1749577776230,1.33125975,108720.0,108710.0,0.58585642]
[1749577776456,1.33125975,108720.0,108710.0,0.59187149]
[1749577776686,1.33125975,108720.0,108710.0,0.56863698]
[1749577776930,1.33125975,108720.0,108710.0,0.59187152]
[1749577777433,0.5423544,108720.0,108710.0,0.63647313]
[1749577777655,0.5423544,108720.0,108710.0,0.72834946]
[1749577777872,0.5423544,108720.0,108710.0,0.71113135]
[1749577778076,0.5423544,108720.0,108710.0,0.63647154]
[1749577778276,0.5423544,108720.0,108710.0,0.6192534]
[1749577778700,0.5423544,108720.0,108710.0,0.63647175]
[1749577779550,0.5423544,108720.0,108710.0,0.63647118]
[1749577780053,0.5423544,108720.0,108710.0,0.63647117]
[1749577781012,1.23990635,108720.0,108710.0,0.63647102]
[1749577781225,0.5423544,108720.0,108710.0,0.63647102]
[1749577781665,0.5423544,108720.0,108710.0,0.6192534]
[1749577782113,0.5423544,108720.0,108710.0,0.636471]
[1749577782330,0.5423544,108720.0,108710.0,0.6192534]
[1749577782573,0.5423544,108720.0,108710.0,0.636471]
[1749577782815,0.5423544,108720.0,108710.0,0.63647033]
[1749577783055,0.5423544,108720.0,108710.0,0.6192534]
[1749577783259,0.5423544,108720.0,108710.0,0.63647033]
[1749577783462,0.5423544,108720.0,108710.0,0.6192534]
[1749577783624,0.5423544,108720.0,108710.0,0.63647033]
[1749577783834,0.5423544,108720.0,108710.0,0.6192534]
[1749577784236,0.5423544,108720.0,108710.0,0.63647033]
[1749577784700,0.34,108720.0,108710.0,0.63646962]
[1749577784974,0.00919565,108740.0,108730.0,0.0303]
[1749577785209,0.23190374,108750.0,108730.0,0.99312101]
[1749577785443,0.54231684,108740.0,108730.0,0.93756966]
[1749577785671,0.54231684,108740.0,108730.0,0.35819096]
[1749577785892,0.20231684,108740.0,108730.0,0.32575543]
[1749577786361,0.20231684,108740.0,108730.0,1.0243058]
[1749577786618,0.54231684,108740.0,108730.0,1.4091252]
[1749577786843,0.54231684,108740.0,108730.0,1.42330577]
[1749577787066,0.54231684,108740.0,108730.0,0.71157325]
[1749577787293,0.54231684,108740.0,108730.0,0.72875382]
[1749577787969,0.54231684,108740.0,108730.0,0.71157325]
[1749577788188,0.54231684,108740.0,108730.0,0.72874288]
[1749577788631,0.54231684,108740.0,108730.0,0.72874095]
[1749577789480,0.54231684,108740.0,108730.0,0.71157325]
[1749577790149,0.54231684,108740.0,108730.0,0.72873485]
[1749577790376,0.54231684,108740.0,108730.0,0.72873487]
[1749577791617,0.54231684,108740.0,108730.0,0.71157325]
[1749577791831,0.54231684,108740.0,108730.0,0.72873045]
[1749577791976,0.54231684,108740.0,108730.0,0.72873047]
[1749577792200,0.54231684,108740.0,108730.0,0.72869047]
[1749577792413,0.54231684,108740.0,108730.0,0.63353047]
[1749577792618,0.54231684,108740.0,108730.0,0.72869047]
[1749577793060,0.54231684,108740.0,108730.0,0.72868916]
[1749577793440,0.54231684,108740.0,108730.0,0.71153325]
[1749577793640,0.54231684,108740.0,108730.0,0.63696608]
[1749577795137,0.54231684,108740.0,108730.0,0.6198134]
[1749577795373,0.54231684,108740.0,108730.0,0.63696614]
[1749577795581,0.54231684,108740.0,108730.0,0.6198134]
[1749577795780,0.54231684,108740.0,108730.0,0.63696614]
[1749577796882,0.54231684,108740.0,108730.0,0.63696418]
[1749577797084,0.54231684,108740.0,108730.0,0.6369642]
[1749577797255,0.54231684,108740.0,108730.0,0.63696422]
[1749577797460,0.54231684,108740.0,108730.0,0.6198134]
[1749577797641,0.54231684,108740.0,108730.0,0.63696422]
[1749577798406,0.54231684,108740.0,108730.0,0.61500442]
[1749577798570,1.34762219,108740.0,108730.0,0.58470442]
[1749577798771,1.36272219,108740.0,108730.0,0.67998561]
[1749577798974,1.36272219,108740.0,108730.0,0.5896334]
[1749577799378,1.36272219,108740.0,108730.0,0.60678394]
[1749577799625,0.63367024,108740.0,108730.0,0.60678394]
[1749577799822,1.23986879,108740.0,108730.0,0.69648413]
[1749577800148,1.23986879,108740.0,108730.0,0.67998413]
[1749577800414,1.23986879,108740.0,108730.0,0.67998698]
[1749577800627,1.23986879,108740.0,108730.0,0.66283359]
[1749577800833,1.23986879,108740.0,108730.0,0.67998703]
[1749577801006,1.23986879,108740.0,108730.0,0.66283359]
[1749577801211,1.23986879,108740.0,108730.0,0.67998686]
[1749577802018,0.54231684,108740.0,108730.0,0.67998686]
[1749577802228,1.23986879,108740.0,108730.0,0.67999502]
[1749577802629,1.23986879,108740.0,108730.0,0.67999504]
[1749577803952,1.23986879,108740.0,108730.0,0.67999796]
[1749577804188,1.23986879,108740.0,108730.0,0.68000576]
[1749577804803,1.23986879,108740.0,108730.0,0.68000578]
[1749577805415,1.23986879,108740.0,108730.0,0.68000839]
[1749577805643,1.23986879,108740.0,108730.0,0.66283359]
[1749577805864,1.23986879,108740.0,108730.0,0.68000839]
[1749577806070,1.23986879,108740.0,108730.0,0.68000841]
[1749577806274,1.23986879,108740.0,108730.0,0.68001911]
[1749577807107,1.23986879,108740.0,108730.0,0.66283359]
[1749577807316,1.23986879,108740.0,108730.0,0.68002133]
[1749577808709,1.23986879,108740.0,108730.0,0.66283359]
[1749577808935,1.23986879,108740.0,108730.0,0.68002111]
[1749577809163,1.23986879,108740.0,108730.0,0.66283359]
[1749577809438,1.23986879,108740.0,108730.0,0.68003036]
[1749577809619,1.23986879,108740.0,108730.0,0.68003037]
[1749577809895,1.23986879,108740.0,108730.0,0.58475037]
[1749577809896,1.34742219,108740.0,108730.0,0.58475037]
[1749577810093,1.36302219,108740.0,108730.0,0.67991037]
[1749577810503,1.36302219,108740.0,108730.0,0.67991217]
[1749577810714,1.36302219,108740.0,108730.0,0.67991205]
[1749577810919,1.36302219,108740.0,108730.0,0.66271359]
[1749577811334,1.36302219,108740.0,108730.0,0.49341547]
[1749577811517,1.36302219,108740.0,108730.0,0.58857551]
[1749577811980,1.36302219,108740.0,108730.0,0.51537669]
[1749577812188,1.36302219,108740.0,108730.0,0.49816]
[1749577813015,1.36302219,108740.0,108730.0,0.51537672]
[1749577813439,1.36302219,108740.0,108730.0,0.49341691]
[1749577813650,1.36302219,108740.0,108730.0,0.51537672]
[1749577813858,1.36302219,108740.0,108730.0,0.49816]
[1749577814253,1.36302219,108740.0,108730.0,0.55321014]
[1749577814522,1.36302219,108740.0,108730.0,0.51437058]
[1749577814722,1.36302219,108740.0,108730.0,0.51237058]
[1749577815630,1.36302219,108740.0,108730.0,0.51236642]
[1749577815837,1.36302219,108740.0,108730.0,0.51236644]
[1749577816868,1.36302219,108740.0,108730.0,0.11236643]
[1749577817293,1.36302219,108740.0,108730.0,0.51236644]
[1749577817492,0.66547024,108740.0,108730.0,0.51236646]
[1749577817700,1.36302219,108740.0,108730.0,0.49516]
[1749577817908,1.36302219,108740.0,108730.0,0.51236646]
[1749577818110,1.36302219,108740.0,108730.0,0.51236645]
[1749577818929,0.66547024,108740.0,108730.0,0.51236645]
[1749577819135,1.36302219,108740.0,108730.0,0.51236683]
[1749577819342,1.36302219,108740.0,108730.0,0.51236688]
[1749577819543,1.36302219,108740.0,108730.0,0.51236689]
[1749577819762,0.66547024,108740.0,108730.0,0.51236688]
[1749577819969,1.23986879,108740.0,108730.0,0.58556707]
[1749577820378,1.25646879,108740.0,108730.0,0.58556707]
[1749577820835,1.25646879,108740.0,108730.0,0.58556459]
[1749577821031,1.25646879,108740.0,108730.0,0.56836019]
[1749577821230,1.34782219,108740.0,108730.0,0.56836019]
[1749577821456,1.34782219,108740.0,108730.0,0.58556551]
[1749577822575,1.34782219,108740.0,108730.0,0.58556597]
[1749577822815,1.34782219,108740.0,108730.0,0.56836019]
[1749577823210,1.34782219,108740.0,108730.0,0.16836019]
[1749577823444,1.34782219,108740.0,108730.0,0.18556768]
[1749577823607,1.34782219,108740.0,108730.0,0.58556768]
[1749577824032,1.34782219,108740.0,108730.0,0.58556786]
[1749577824270,1.34782219,108740.0,108730.0,0.56836019]
[1749577824431,1.34782219,108740.0,108730.0,0.58556786]
[1749577824772,1.34782219,108740.0,108730.0,0.56836019]
[1749577824977,1.34782219,108740.0,108730.0,0.5855707]
[1749577826709,1.36442219,108740.0,108730.0,0.56836019]
[1749577826915,1.36442219,108740.0,108730.0,0.49516]
[1749577827114,1.36442219,108740.0,108730.0,0.41721564]
[1749577827343,1.36442219,108740.0,108730.0,0.56745398]
[1749577828330,1.36442219,108740.0,108730.0,0.56745448]
[1749577828968,2.15713414,108740.0,108730.0,0.47229448]
[1749577829362,2.15713414,108740.0,108730.0,0.07229213]
[1749577829496,2.15713414,108740.0,108730.0,0.05507834]
[1749577829695,1.45958219,108740.0,108730.0,0.05507834]
[1749577830099,1.45958219,108740.0,108730.0,0.072292]
[1749577831270,1.45958219,108740.0,108730.0,0.05507834]
[1749577831442,1.45958219,108740.0,108730.0,0.07228908]
[1749577831847,1.45958219,108740.0,108730.0,0.07228982]
[1749577833056,1.45958219,108740.0,108730.0,0.07228781]
[1749577833533,1.45958219,108740.0,108730.0,0.07228917]
[1749577834331,1.45958219,108740.0,108730.0,0.47228917]
[1749577834751,1.45958219,108740.0,108730.0,0.45507834]
[1749577835220,1.45958219,108740.0,108730.0,0.47229143]
[1749577835446,1.45958219,108740.0,108730.0,0.45507834]
[1749577835615,1.45958219,108740.0,108730.0,0.47229142]
[1749577836271,1.45958219,108740.0,108730.0,0.47229039]
[1749577836533,1.45958219,108740.0,108730.0,0.50901327]
[1749577836724,1.45958219,108740.0,108730.0,0.5090165]
[1749577837313,1.45958219,108740.0,108730.0,0.1090165]
[1749577837675,1.45958219,108740.0,108730.0,0.5090165]
[1749577838355,1.45958219,108740.0,108730.0,0.50901406]
[1749577838590,1.45958219,108740.0,108730.0,0.50901413]
[1749577838811,1.45958219,108740.0,108730.0,0.50901428]
[1749577839029,1.45958219,108740.0,108730.0,0.49180094]
[1749577839245,1.45958219,108740.0,108730.0,0.50901399]
[1749577840037,1.45958219,108740.0,108730.0,0.50901932]
[1749577840662,1.45958219,108740.0,108730.0,0.49180094]
[1749577841079,1.45958219,108740.0,108730.0,0.50901932]
[1749577841295,1.45958219,108740.0,108730.0,0.10901932]
[1749577841720,1.45958219,108740.0,108730.0,0.50901773]
[1749577842148,1.45958219,108740.0,108730.0,0.49180094]
[1749577842365,1.45958219,108740.0,108730.0,0.50901773]
[1749577843538,1.45958219,108740.0,108730.0,0.49180094]
[1749577843767,1.45958219,108740.0,108730.0,0.50901655]
[1749577844025,1.45958219,108740.0,108730.0,0.49180094]
[1749577844291,1.45958219,108740.0,108730.0,0.50901655]
[1749577844739,1.45958219,108740.0,108730.0,0.09180094]
[1749577845030,1.45958219,108740.0,108730.0,0.10901655]
[1749577845275,1.45958219,108740.0,108730.0,0.50901655]
[1749577845520,1.45958219,108740.0,108730.0,0.49180094]
[1749577846018,1.45958219,108740.0,108730.0,0.50901592]
[1749577847190,1.45958219,108740.0,108730.0,0.49180094]
[1749577847516,1.45958219,108740.0,108730.0,0.47229305]
[1749577847517,1.33122219,108740.0,108730.0,0.47229305]
[1749577847765,1.42638219,108740.0,108730.0,0.47229241]
[1749577847975,1.42638219,108740.0,108730.0,0.47229255]
[1749577848432,1.42638219,108740.0,108730.0,0.07229255]
[1749577848862,1.44248219,108740.0,108730.0,0.47229255]
[1749577849084,1.45868219,108740.0,108730.0,0.47229393]
[1749577849319,1.45868219,108740.0,108730.0,0.45507834]
[1749577849533,1.45868219,108740.0,108730.0,0.47229395]
[1749577850158,1.45868219,108740.0,108730.0,0.47229484]
[1749577850818,1.45868219,108740.0,108730.0,0.47229559]
[1749577851037,1.45868219,108740.0,108730.0,0.4722956]
[1749577851490,1.44248219,108740.0,108730.0,0.4722956]
[1749577851909,1.44248219,108740.0,108730.0,0.0722956]
[1749577852143,1.42638219,108740.0,108730.0,0.0722956]
[1749577852346,1.42638219,108740.0,108730.0,0.4722956]
[1749577852627,1.42638219,108740.0,108730.0,0.47229914]
[1749577853063,1.42638219,108740.0,108730.0,0.45507834]
[1749577853278,1.42638219,108740.0,108730.0,0.47229996]